bitfinex/quotes_ETHUSD_20250314
["timestamp","ask_amount","ask_price","bid_price","bid_amount"]
[1741921179507,6.98275407,1897.2,1896.7,7.38105]
[1741921179712,6.98272407,1897.2,1896.7,3.7432376]
[1741921179949,6.98272407,1897.2,1896.7,7.4337676]
[1741921180253,10.67248407,1897.2,1896.7,7.4337576]
[1741921180408,6.98272407,1897.2,1896.7,7.4337576]
[1741921180604,3.69,1897.1,1896.6,4.51208]
[1741921181537,3.69,1897.1,1896.6,8.20275]
[1741921182043,3.69,1897.1,1896.6,8.20269]
[1741921182204,3.69,1897.1,1896.6,7.38139]
[1741921182410,4.82710165,1897.1,1896.6,3.69067]
[1741921182936,1.13710165,1897.1,1896.6,3.69064]
[1741921183141,10.67258407,1897.2,1896.7,3.69052]
[1741921183538,3.68984,1897.1,1896.7,3.69052]
[1741921184073,3.68984,1897.1,1896.6,7.38135]
[1741921184240,6.98276407,1897.2,1896.7,3.69049]
[1741921184455,3.68995,1897.1,1896.7,3.69057]
[1741921185266,4.75722141,1897.1,1896.6,3.69064]
[1741921185419,3.69011,1897.0,1896.6,3.69064]
[1741921187046,3.69011,1897.0,1896.5,7.3819]
[1741921187347,3.69011,1897.0,1896.6,3.69071]
[1741921189451,4.75722141,1897.1,1896.6,3.69071]
[1741921189452,3.68995,1897.1,1896.7,3.69058]
[1741921189649,7.38547556,1897.5,1897.0,3.68989]
[1741921189820,3.0,1897.4,1896.9,3.69013]
[1741921190020,6.68941,1897.4,1896.9,3.69013]
[1741921190247,3.68966,1897.2,1896.8,4.51933979]
[1741921190445,3.68966,1897.2,1896.8,4.21669408]
[1741921191570,3.68966,1897.2,1896.8,4.26940855]
[1741921192173,3.68966,1897.2,1896.8,4.21669408]
[1741921192751,3.68966,1897.2,1896.8,4.26940855]
[1741921193319,3.68985,1897.1,1896.8,0.52627408]
[1741921193726,3.68966,1897.2,1896.8,4.21666408]
[1741921194128,7.3794,1897.2,1896.8,4.21666408]
[1741921194435,3.68966,1897.2,1896.8,4.21666408]
[1741921194660,7.37941,1897.2,1896.8,4.21666408]
[1741921196260,7.37941,1897.2,1896.8,0.52627408]
[1741921197465,7.37941,1897.2,1896.7,4.43392098]
[1741921198263,3.68966,1897.2,1896.8,3.69033]
[1741921199364,3.68944,1897.4,1896.7,4.48663762]
[1741921199365,6.68944,1897.4,1896.9,3.6902]
[1741921199578,6.68944,1897.4,1896.9,4.50725]
[1741921200168,3.0,1897.3,1896.9,4.50725]
[1741921200361,6.68945,1897.3,1896.9,5.33228843]
[1741921200556,3.29300407,1897.6,1896.9,1.64213843]
[1741921200753,11.256,1897.7,1896.7,0.74340098]
[1741921200754,3.68985,1897.1,1896.7,4.50771]
[1741921200938,7.37936,1897.2,1896.7,8.25094633]
[1741921201138,3.0,1897.3,1896.9,3.69019]
[1741921201367,3.68946,1897.3,1896.9,3.742906]
[1741921201580,17.437,1897.8,1896.9,10.8360486]
[1741921201875,6.68934,1897.4,1897.0,3.68987]
[1741921202037,3.0,1897.4,1897.0,3.74258018]
[1741921202242,3.0,1897.4,1897.0,3.69]
[1741921202454,6.68934,1897.4,1896.9,14.1413126]
[1741921202653,6.68934,1897.4,1897.0,1.41413126]
[1741921202968,3.0,1897.4,1897.0,5.10399126]
[1741921203341,6.68925,1897.4,1897.0,5.10399126]
[1741921203865,3.0,1897.4,1897.0,5.10399126]
[1741921204074,3.68878,1897.7,1897.2,3.68947]
[1741921204442,3.68923,1897.5,1897.2,0.7554]
[1741921205137,3.68899,1897.6,1897.2,4.44494]
[1741921206639,6.68868,1897.7,1897.3,3.68944]
[1741921207143,6.68868,1897.7,1897.2,0.80810234]
[1741921207144,3.0,1897.7,1897.2,0.80810234]
[1741921207349,21.12549,1897.8,1897.3,3.68934]
[1741921207549,3.68879,1897.7,1897.3,3.68934]
[1741921207755,3.0,1897.7,1897.2,0.7554]
[1741921207941,6.68916,1897.5,1897.1,13.72974]
[1741921209372,3.0,1897.5,1897.1,17.41942]
[1741921210177,3.0,1897.5,1897.2,3.68952]
[1741921212069,3.68867,1897.7,1897.3,4.5118]
[1741921212240,6.68867,1897.7,1897.3,4.5118]
[1741921212769,3.0,1897.7,1897.4,3.68906]
[1741921212972,3.0,1897.7,1897.4,7.37817]
[1741921213274,3.0,1897.7,1897.4,3.68906]
[1741921213448,3.0,1897.7,1897.3,0.8224]
[1741921213449,3.0,1897.7,1897.3,4.51181]
[1741921213647,6.6887,1897.7,1897.3,4.51181]
[1741921214180,3.68896,1897.6,1897.1,0.8224]
[1741921214344,3.68896,1897.6,1897.2,3.68956]
[1741921214757,3.68896,1897.6,1897.1,4.5121]
[1741921215041,4.357856,1897.6,1897.1,8.20174]
[1741921215349,3.68916,1897.5,1897.1,4.51204]
[1741921216477,4.357856,1897.6,1897.2,3.68963]
[1741921218656,6.98109407,1898.0,1897.5,3.68904]
[1741921218845,3.6885,1897.8,1897.4,4.47421]
[1741921219573,3.6885,1897.8,1897.4,0.7851]
[1741921219773,3.68877,1897.7,1897.4,0.7851]
[1741921219948,3.68877,1897.7,1897.3,3.68927]
[1741921220146,3.68877,1897.7,1897.3,4.45447]
[1741921220374,3.68877,1897.7,1897.3,8.14382]
[1741921220549,3.68877,1897.7,1897.4,3.68925]
[1741921220983,0.368877,1897.7,1897.3,0.7652]
[1741921221184,3.68918,1897.5,1897.1,1.25772625]
[1741921221380,3.68918,1897.5,1896.9,14.49734]
[1741921221381,3.68945,1897.3,1896.9,14.49734]
[1741921221680,3.68945,1897.3,1896.9,4.45734]
[1741921223051,3.68945,1897.3,1896.9,8.14741]
[1741921223278,3.68945,1897.3,1896.9,8.14747]
[1741921223948,3.68973,1897.2,1896.9,0.7673]
[1741921224251,6.29300407,1897.0,1896.5,0.8007]
[1741921224474,6.29300407,1897.0,1896.2,10.04]
[1741921224475,3.6907,1896.7,1896.2,8.18366]
[1741921224753,3.69083,1896.6,1896.2,4.49215]
[1741921225062,3.69083,1896.6,1896.3,0.49128995]
[1741921225579,3.69101,1896.5,1896.3,0.49128995]
[1741921225781,3.69083,1896.6,1896.2,4.49215]
[1741921225958,3.0,1896.7,1896.3,3.69128]
[1741921226157,6.69072,1896.7,1896.2,6.83314]
[1741921226480,6.6907,1896.7,1896.2,10.57735092]
[1741921226655,6.6907,1896.7,1896.2,6.83314]
[1741921226855,10.38147,1896.7,1896.2,10.57735098]
[1741921227070,6.6907,1896.7,1896.2,6.83314]
[1741921227583,3.69102,1896.5,1896.2,0.8007]
[1741921227771,3.79733006,1896.7,1896.0,3.69187]
[1741921227772,3.69149,1896.3,1896.0,0.7996]
[1741921227974,3.69149,1896.3,1895.8,10.04]
[1741921227975,3.69181,1896.1,1895.8,10.04]
[1741921228187,3.69181,1896.1,1895.7,4.49207]
[1741921228484,3.6916,1896.2,1895.7,4.49207]
[1741921228900,3.69182,1896.1,1895.7,4.49207]
[1741921229101,6.69139,1896.3,1895.8,3.74498295]
[1741921229580,3.6916,1896.2,1895.8,3.69224]
[1741921229786,6.69139,1896.3,1895.8,3.69222]
[1741921229996,10.38288,1896.3,1895.8,3.69222]
[1741921230385,6.69139,1896.3,1895.8,7.3845]
[1741921230555,10.38288,1896.3,1895.8,4.56088252]
[1741921230752,6.69139,1896.3,1895.8,8.25316252]
[1741921230956,3.69175,1896.2,1895.7,4.94183233]
[1741921231157,3.69175,1896.2,1895.7,4.99451554]
[1741921231375,3.69175,1896.2,1895.8,3.69226]
[1741921232190,3.67593889,1896.2,1895.8,3.69226]
[1741921232558,3.0,1896.3,1895.8,7.38453]
[1741921232559,6.69148,1896.3,1895.8,7.38453]
[1741921232756,6.69148,1896.3,1895.8,3.69226]
[1741921232961,10.38306,1896.3,1895.8,3.69226]
[1741921233261,3.69161,1896.2,1895.8,3.69226]
[1741921233698,11.421346,1896.3,1895.8,3.6922]
[1741921233859,11.421336,1896.3,1895.8,3.6922]
[1741921234183,3.6916,1896.2,1895.7,0.7996]
[1741921234489,3.6916,1896.2,1895.8,3.69235]
[1741921234661,3.625503,1896.2,1895.8,4.510796]
[1741921234862,3.625503,1896.2,1895.8,0.818446]
[1741921235889,7.317273,1896.2,1895.8,0.818446]
[1741921236286,3.625503,1896.2,1895.8,0.818446]
[1741921236491,7.317183,1896.2,1895.8,0.818446]
[1741921236693,7.317183,1896.2,1895.7,4.49205]
[1741921236694,3.69191,1896.1,1895.7,0.7996]
[1741921238067,3.69199,1896.0,1895.7,0.7996]
[1741921238266,3.69191,1896.1,1895.7,0.7996]
[1741921238505,3.69145,1896.3,1895.8,3.69223]
[1741921238705,3.0,1896.1,1895.8,4.141413]
[1741921239270,3.69144,1896.3,1895.9,3.69202]
[1741921239471,3.69144,1896.3,1895.8,4.141533]
[1741921239866,3.0,1896.1,1895.8,4.141533]
[1741921240069,3.0,1896.1,1895.9,0.4141533]
[1741921240266,3.0,1896.1,1895.9,4.1062433]
[1741921240575,3.0,1896.2,1895.9,0.4141533]
[1741921240775,6.69159,1896.2,1895.9,0.4141533]
[1741921241074,6.69159,1896.2,1895.8,4.141473]
[1741921241592,3.69181,1896.1,1895.7,0.7996]
[1741921241967,7.38376,1896.1,1895.7,0.7996]
[1741921242168,3.69181,1896.1,1895.7,0.85234657]
[1741921242486,3.69181,1896.1,1895.7,4.54478657]
[1741921242676,3.0,1896.2,1895.8,3.69227]
[1741921243298,3.69168,1896.2,1895.7,4.54478657]
[1741921243497,3.69168,1896.2,1895.7,4.94651866]
[1741921243666,3.69188,1896.1,1895.7,4.94651866]
[1741921245128,7.38343,1896.2,1895.7,8.63898866]
[1741921245330,7.38343,1896.2,1895.7,4.99926429]
[1741921245535,3.6918,1896.1,1895.7,4.99926429]
[1741921245695,3.6918,1896.1,1895.7,4.94651866]
[1741921245894,7.38375,1896.1,1895.7,1.25407866]
[1741921246128,3.69205,1896.0,1895.7,0.7996]
[1741921246330,3.69222,1895.9,1895.7,0.7996]
[1741921246528,3.69222,1895.9,1895.5,10.8019]
[1741921246529,3.69237,1895.8,1895.5,10.8019]
[1741921246735,3.69237,1895.8,1895.5,0.7619]
[1741921247032,3.6927,1895.7,1895.3,13.31146]
[1741921247203,3.69237,1895.8,1895.4,3.69305]
[1741921247405,4.061607,1895.8,1895.4,3.69305]
[1741921248124,0.369237,1895.8,1895.5,3.69295]
[1741921248296,7.38444,1895.9,1895.5,3.69295]
[1741921248496,3.69218,1895.9,1895.5,3.69295]
[1741921250330,3.69218,1895.9,1895.4,3.69305]
[1741921250505,3.69244,1895.8,1895.4,3.69305]
[1741921251031,3.69218,1895.9,1895.5,3.69288]
[1741921251528,7.38452,1895.9,1895.5,3.69288]
[1741921251735,6.69199,1896.0,1895.6,7.38533]
[1741921252039,6.69209,1896.0,1895.6,4.48966]
[1741921252618,3.0,1896.0,1895.7,3.69246]
[1741921252820,6.69198,1896.0,1895.6,4.48966]
[1741921253219,6.69198,1896.0,1895.6,8.7051653]
[1741921253648,6.69198,1896.0,1895.6,5.0124853]
[1741921253850,10.38412,1896.0,1895.6,5.0124853]
[1741921254348,3.69219,1895.9,1895.6,0.797]
[1741921254952,3.6924,1895.8,1895.4,9.64926]
[1741921255157,3.69257,1895.7,1895.3,3.69324]
[1741921255463,3.69257,1895.7,1895.3,7.38646]
[1741921255652,3.6924,1895.8,1895.3,8.720736]
[1741921255807,3.6924,1895.8,1895.4,3.69314]
[1741921256948,3.69217,1895.9,1895.5,3.69293]
[1741921257110,7.38444,1895.9,1895.5,3.69293]
[1741921257433,3.69238,1895.8,1895.4,3.69314]
[1741921257742,7.38492,1895.8,1895.4,3.69314]
[1741921258321,3.69257,1895.7,1895.3,5.027586]
[1741921259382,7.3853,1895.7,1895.3,1.334276]
[1741921259667,7.3853,1895.7,1895.2,4.52171]
[1741921259845,3.69257,1895.7,1895.3,3.69332]
[1741921260044,3.69257,1895.7,1895.3,7.38653]
[1741921260364,3.69237,1895.8,1895.3,7.38653]
[1741921260864,3.69218,1895.9,1895.3,3.69334]
[1741921260865,6.69269,1895.7,1895.3,3.69334]
[1741921261167,7.361959,1895.7,1895.3,3.69331]
[1741921261558,3.669269,1895.7,1895.3,3.69319]
[1741921261865,3.0,1895.7,1895.4,3.69307]
[1741921262058,3.0,1896.0,1895.7,3.69252]
[1741921262652,6.69204,1896.0,1895.5,8.14207]
[1741921262978,3.0,1895.8,1895.5,4.44942]
[1741921263667,10.38406,1896.0,1895.6,3.69271]
[1741921263884,11.75176641,1896.0,1895.6,3.69271]
[1741921264542,3.0,1895.8,1895.5,0.7565]
[1741921264958,6.69238,1895.8,1895.5,0.7565]
[1741921265256,6.69238,1895.8,1895.4,3.69314]
[1741921265449,3.69257,1895.7,1895.3,8.14583]
[1741921265639,3.69257,1895.7,1895.3,10.01716739]
[1741921265979,3.69257,1895.7,1895.3,9.964413]
[1741921266766,3.69257,1895.7,1895.2,10.04]
[1741921266969,3.69257,1895.7,1895.2,14.49275]
[1741921267169,3.69257,1895.7,1895.3,3.69334]
[1741921267469,7.38531,1895.7,1895.2,14.49275]
[1741921267877,7.38531,1895.7,1895.2,18.18621]
[1741921268084,7.92172865,1895.7,1895.2,14.49275]
[1741921268384,3.69289,1895.6,1895.2,14.49275]
[1741921268855,3.69289,1895.6,1895.1,3.69948331]
[1741921268856,3.69311,1895.5,1895.1,0.00575331]
[1741921269056,3.0,1895.4,1895.1,0.00575331]
[1741921269261,9.98654407,1895.2,1895.1,0.00575331]
[1741921269446,3.0,1895.2,1895.1,0.00575331]
[1741921270094,3.82942272,1895.7,1895.3,3.69324]
[1741921270386,3.82942272,1895.7,1895.1,0.00575331]
[1741921270387,6.29300407,1895.7,1895.1,0.00575331]
[1741921270593,3.0,1895.5,1895.1,3.69939331]
[1741921270961,3.0,1895.5,1895.2,4.74866242]
[1741921271165,3.0,1895.7,1895.3,4.48876]
[1741921271362,8.82037,1895.8,1895.4,3.69296]
[1741921271563,3.0,1895.7,1895.4,3.69296]
[1741921274356,3.0,1895.7,1895.3,4.48893]
[1741921274877,3.0,1895.7,1895.3,4.48881]
[1741921275072,3.0,1895.7,1895.4,3.69311]
[1741921275385,6.69263,1895.7,1895.3,4.98523516]
[1741921275556,3.0,1895.7,1895.3,8.67846516]
[1741921275758,3.0,1895.7,1895.4,3.69314]
[1741921276082,3.0,1895.7,1895.4,1.07386879]
[1741921276265,3.0,1895.7,1895.4,2.04910219]
[1741921276466,3.0,1895.7,1895.4,5.74220219]
[1741921277685,6.6926,1895.7,1895.4,2.04910219]
[1741921277877,6.6926,1895.7,1895.4,1.07386879]
[1741921278083,3.0,1895.5,1895.1,19.65441331]
[1741921278264,3.0,1895.5,1895.1,10.83185331]
[1741921278265,3.69319,1895.4,1895.1,10.83185331]
[1741921278470,3.69319,1895.4,1895.1,0.00575331]
[1741921279984,3.69354,1895.2,1895.1,0.00575331]
[1741921280161,7.432228,1895.2,1895.1,0.00575331]
[1741921280569,10.72523207,1895.2,1895.1,0.00575331]
[1741921280894,7.432228,1895.2,1895.1,0.00575331]
[1741921281277,11.27523207,1895.2,1895.1,0.00575331]
[1741921283780,11.66400747,1895.2,1895.1,0.00575331]
[1741921283981,11.11400747,1895.2,1895.1,0.00575331]
[1741921286060,10.72523207,1895.2,1895.1,0.00575331]
[1741921286264,9.98654407,1895.2,1895.1,0.00575331]
[1741921287369,6.69354,1895.2,1895.1,0.00575331]
[1741921288373,9.98654407,1895.2,1895.1,0.00575331]
[1741921294778,3.0,1894.9,1894.6,5.57033301]
[1741921294979,6.69415,1894.9,1894.6,0.7992]
[1741921295575,3.69433,1894.8,1894.6,0.7992]
[1741921296611,3.69451,1894.7,1894.4,0.7633]
[1741921296830,3.69451,1894.7,1894.4,2.726142]
[1741921298403,3.69451,1894.7,1894.4,0.7633]
[1741921298609,3.69472,1894.6,1894.4,0.7633]
[1741921299436,3.69514,1894.4,1894.2,0.7678]
[1741921299640,3.69533,1894.3,1893.9,4.46385]
[1741921299805,3.69533,1894.3,1894.0,0.446385]
[1741921300232,3.69533,1894.3,1893.9,4.46385]
[1741921300440,7.39038,1894.4,1894.0,3.69587]
[1741921300736,3.69514,1894.4,1894.0,3.69587]
[1741921301910,10.38976,1894.6,1894.1,4.46343]
[1741921302243,6.69481,1894.6,1894.2,3.6954]
[1741921302924,10.3896,1894.6,1894.2,3.6954]
[1741921303130,11.42856,1894.6,1894.1,4.4634]
[1741921303309,10.3896,1894.6,1894.1,4.4634]
[1741921303509,6.69479,1894.6,1894.1,4.4634]
[1741921303710,6.69479,1894.6,1894.3,3.69516]
[1741921303711,3.0,1894.6,1894.3,3.69516]
[1741921304218,6.98732407,1894.8,1894.4,3.69502]
[1741921304219,3.69434,1894.8,1894.4,3.69502]
[1741921304435,3.0,1894.8,1894.5,0.7697]
[1741921304826,6.69435,1894.8,1894.5,0.7697]
[1741921305026,3.69387,1895.1,1894.6,3.69451]
[1741921305251,3.69424,1894.9,1894.5,4.46458]
[1741921305453,7.38855,1894.9,1894.5,0.7697]
[1741921305657,6.69432,1894.8,1894.5,1.2906018]
[1741921306159,3.69454,1894.7,1894.4,1.04548941]
[1741921306731,3.0,1894.6,1894.4,1.04548941]
[1741921306925,6.69481,1894.6,1894.4,1.04548941]
[1741921307347,6.69481,1894.6,1894.3,0.7922]
[1741921307543,3.0,1894.6,1894.3,4.48741]
[1741921307756,3.0,1894.6,1894.4,0.448741]
[1741921309164,6.69471,1894.6,1894.3,0.7922]
[1741921310262,3.0,1894.6,1894.3,4.48748]
[1741921312378,3.0,1894.6,1894.3,4.48734]
[1741921312576,3.0,1894.6,1894.3,8.18253]
[1741921313456,3.0,1894.6,1894.3,4.48734]
[1741921313650,3.0,1894.6,1894.3,5.31090068]
[1741921314555,9.72373,1895.1,1894.4,0.7546]
[1741921314556,6.03,1895.1,1894.4,0.7546]
[1741921314752,3.69405,1895.0,1894.6,4.253254]
[1741921314957,3.69405,1895.0,1894.6,0.558644]
[1741921315158,3.0,1894.7,1894.4,3.69505]
[1741921315477,6.69461,1894.7,1894.3,10.04]
[1741921315771,6.69461,1894.7,1894.3,13.73527]
[1741921315941,3.0,1894.7,1894.4,3.69505]
[1741921316966,6.69457,1894.7,1894.3,13.73527]
[1741921317170,3.0,1894.7,1894.3,17.43047]
[1741921317470,6.69452,1894.7,1894.3,13.7352]
[1741921317666,7.733413,1894.7,1894.3,13.7352]
[1741921317871,4.038893,1894.7,1894.4,0.8253]
[1741921318273,7.733433,1894.7,1894.4,0.8253]
[1741921318868,3.0,1894.7,1894.4,4.52039]
[1741921319038,3.0,1894.8,1894.4,4.57303226]
[1741921319238,3.89017,1894.9,1894.6,3.69463]
[1741921319239,3.0,1894.9,1894.6,3.69463]
[1741921319444,3.29300407,1895.2,1894.7,8.20671]
[1741921319445,0.196,1895.2,1894.7,8.20671]
[1741921319644,3.0,1895.0,1894.7,4.51228]
[1741921319844,0.196,1895.2,1894.7,0.8179]
[1741921320077,3.69371,1895.2,1894.7,4.51231]
[1741921320256,4.063131,1895.1,1894.7,4.51231]
[1741921320581,3.69403,1895.0,1894.7,0.8179]
[1741921320879,3.0,1894.9,1894.7,0.8179]
[1741921322379,3.0,1894.9,1894.7,1.85908489]
[1741921322677,3.0,1894.9,1894.7,5.55358489]
[1741921323669,3.0,1894.9,1894.7,1.85908489]
[1741921323845,3.0,1894.9,1894.8,0.00575331]
[1741921325949,0.196,1895.3,1894.9,3.69401]
[1741921326154,6.88942,1895.3,1894.9,3.69401]
[1741921326376,6.88942,1895.3,1894.8,3.70006331]
[1741921326576,3.69365,1895.2,1894.8,3.70006331]
[1741921326986,6.88942,1895.3,1894.8,7.39419331]
[1741921327299,6.88942,1895.3,1894.9,3.69408]
[1741921327593,6.88942,1895.3,1894.8,3.75265335]
[1741921327799,4.382512,1895.2,1894.8,3.69988331]
[1741921328179,3.69373,1895.1,1894.8,0.00575331]
[1741921330107,4.382512,1895.2,1894.8,3.70006331]
[1741921331172,3.69357,1895.2,1894.8,3.70006331]
[1741921331802,7.38722,1895.2,1894.8,3.70006331]
[1741921332207,3.69357,1895.2,1894.8,3.70006331]
[1741921332384,3.69357,1895.2,1894.9,1.07133787]
[1741921332568,3.69377,1895.1,1894.9,1.07133787]
[1741921332772,4.432504,1895.1,1894.9,1.07133787]
[1741921333699,3.69395,1895.0,1894.8,0.00575331]
[1741921333891,4.432464,1895.1,1894.8,0.00575331]
[1741921334093,3.69396,1895.0,1894.8,0.00575331]
[1741921334774,3.69412,1894.9,1894.8,0.00575331]
[1741921334976,4.452528,1894.9,1894.8,0.00575331]
[1741921338895,3.758408,1894.9,1894.8,0.00575331]
[1741921339096,7.452528,1894.9,1894.8,0.00575331]
[1741921339423,3.0,1894.9,1894.8,0.00575331]
[1741921340134,5.326,1895.4,1894.9,4.4853]
[1741921340299,6.69345,1895.3,1894.9,0.7913]
[1741921340497,3.0,1895.1,1894.9,0.7913]
[1741921340825,3.69345,1895.3,1894.9,0.7913]
[1741921341195,7.38689,1895.3,1894.9,0.7913]
[1741921341396,3.69344,1895.3,1895.0,1.06621381]
[1741921341607,4.751699,1895.3,1895.0,1.06621381]
[1741921342232,8.445219,1895.3,1895.0,1.06621381]
[1741921343619,4.751699,1895.3,1895.0,1.06621381]
[1741921343817,3.69344,1895.3,1895.0,1.06621381]
[1741921344128,3.69324,1895.4,1895.0,4.76009381]
[1741921344325,3.69324,1895.4,1895.1,0.8312]
[1741921344525,0.196,1895.4,1895.0,1.06621381]
[1741921344707,7.38737,1895.2,1894.9,0.8312]
[1741921344907,3.69376,1895.1,1894.9,0.8312]
[1741921345325,4.432417,1895.2,1894.9,0.8312]
[1741921345534,3.69368,1895.2,1894.9,0.8312]
[1741921345746,7.38739,1895.2,1894.9,1.89605082]
[1741921346044,6.69374,1895.1,1894.9,1.89605082]
[1741921346602,3.0,1895.1,1894.9,1.89605082]
[1741921347106,3.0,1895.3,1894.9,5.59013082]
[1741921347323,7.751696,1895.3,1894.9,1.89605082]
[1741921348341,3.0,1895.1,1894.9,1.89605082]
[1741921348910,3.69354,1895.2,1894.8,0.00575331]
[1741921348911,3.69393,1895.0,1894.8,0.00575331]
[1741921349127,3.69412,1894.9,1894.8,0.00575331]
[1741921349366,4.432925,1894.9,1894.8,0.00575331]
[1741921350413,0.738805,1894.9,1894.8,0.00575331]
[1741921350821,3.69393,1895.0,1894.8,0.00575331]
[1741921352241,6.69373,1895.1,1894.8,0.76855331]
[1741921352433,7.38756,1895.1,1894.8,0.76855331]
[1741921352613,7.38759,1895.1,1894.8,0.76855331]
[1741921353014,3.69373,1895.1,1894.8,0.76855331]
[1741921353314,7.38764,1895.1,1894.8,0.76855331]
[1741921353525,4.452094,1895.1,1894.8,0.76855331]
[1741921354533,3.69358,1895.2,1894.8,4.46286331]
[1741921354844,7.3873,1895.2,1894.8,0.76855331]
[1741921355740,7.3873,1895.2,1894.9,1.07274179]
[1741921356126,6.69375,1895.1,1894.9,1.07274179]
[1741921356949,10.38767,1895.1,1894.8,0.76855331]
[1741921357251,1.038767,1895.0,1894.8,0.76855331]
[1741921357544,6.69375,1895.1,1894.8,0.76855331]
[1741921357918,6.69375,1895.1,1894.8,1.8398137]
[1741921361455,6.62375,1895.1,1894.8,1.8398137]
[1741921361632,6.57375,1895.1,1894.8,1.8398137]
[1741921363055,10.26765,1895.1,1894.8,1.8398137]
[1741921363234,6.57375,1895.1,1894.8,1.8398137]
[1741921365364,10.2676,1895.1,1894.8,1.8398137]
[1741921365671,10.2676,1895.1,1894.8,0.76855331]
[1741921365825,11.29436,1895.1,1894.8,0.76855331]
[1741921366556,3.69412,1894.9,1894.8,0.00575331]
[1741921367261,6.69412,1894.9,1894.8,0.00575331]
[1741921368357,7.44012,1894.9,1894.8,0.00575331]
[1741921370250,12.01912,1894.9,1894.8,0.00575331]
[1741921370440,12.89648506,1894.9,1894.8,0.00575331]
[1741921372443,13.28774419,1894.9,1894.8,0.00575331]
[1741921375866,13.83774419,1894.9,1894.8,0.00575331]
[1741921376765,13.28774419,1894.9,1894.8,0.00575331]
[1741921377366,8.15874419,1894.9,1894.8,0.00575331]
[1741921379754,8.70874419,1894.9,1894.8,0.00575331]
[1741921380339,8.70874419,1894.9,1893.9,10.8358]
[1741921380536,8.70874419,1894.9,1894.0,1.03200812]
[1741921380537,3.0,1894.3,1894.0,1.03200812]
[1741921380744,3.0,1894.3,1894.1,0.7958]
[1741921380939,6.69542,1894.3,1894.1,0.7958]
[1741921381139,3.196,1894.3,1893.8,0.7958]
[1741921381341,6.69577,1894.1,1893.8,0.7958]
[1741921381541,3.0,1894.1,1893.8,0.7958]
[1741921381752,6.69574,1894.1,1893.8,1.87448664]
[1741921382943,10.39159,1894.1,1893.8,1.87448664]
[1741921383137,6.69574,1894.1,1893.8,1.87448664]
[1741921386389,3.69607,1893.9,1893.5,0.8116]
[1741921386546,3.69627,1893.8,1893.5,0.8116]
[1741921386932,3.69607,1893.9,1893.6,1.05611398]
[1741921387179,3.0,1893.9,1893.7,0.8116]
[1741921387345,7.72893064,1894.1,1893.6,1.05611398]
[1741921387346,6.69557,1894.2,1893.9,0.8116]
[1741921388773,14.64800407,1894.9,1894.1,0.8041]
[1741921388943,14.64800407,1894.9,1894.2,0.8041]
[1741921388944,3.0,1894.4,1894.2,0.8041]
[1741921389977,3.0,1894.4,1894.2,4.49957]
[1741921390174,3.0,1894.4,1894.2,0.8041]
[1741921390547,3.69451,1894.8,1894.4,3.69503]
[1741921390752,3.69444,1894.8,1894.4,0.7992]
[1741921390983,6.69453,1894.7,1894.4,0.7992]
[1741921394187,3.0,1894.7,1894.4,4.49428]
[1741921396284,7.38842,1894.9,1894.4,7.39009]
[1741921396474,25.88100407,1895.1,1894.4,7.39009]
[1741921396475,3.69403,1895.0,1894.6,3.6947]
[1741921396674,3.69403,1895.0,1894.5,8.17552]
[1741921396863,3.0,1894.9,1894.5,8.17553]
[1741921398295,3.0,1894.9,1894.6,3.69467]
[1741921398460,3.0,1894.9,1894.6,0.817547]
[1741921398667,3.0,1894.9,1894.7,0.7859]
[1741921399692,3.0,1894.9,1894.7,4.48037]
[1741921400478,3.0,1894.9,1894.7,8.17478]
[1741921400678,3.0,1894.9,1894.7,4.48031]
[1741921401078,3.0,1894.9,1894.7,0.7859]
[1741921401292,3.99869341,1894.9,1894.7,0.7859]
[1741921405399,7.69282341,1894.9,1894.7,0.7859]
[1741921405901,3.99869341,1894.9,1894.7,1.87035017]
[1741921406104,3.0,1894.9,1894.7,5.56484017]
[1741921406298,3.0,1895.0,1894.9,0.7558]
[1741921406794,3.0,1895.2,1894.9,0.7558]
[1741921407096,7.38637,1895.4,1894.9,8.14392]
[1741921407304,3.0,1895.3,1894.9,8.14379]
[1741921407481,3.758237,1895.4,1895.0,3.69376]
[1741921407681,7.451437,1895.4,1895.0,3.69376]
[1741921408198,7.451437,1895.4,1894.9,4.44988]
[1741921408370,3.69343,1895.3,1894.9,4.44988]
[1741921408571,3.0,1895.2,1894.9,1.81051456]
[1741921409305,3.69376,1895.1,1894.9,1.81051456]
[1741921409599,6.69359,1895.2,1894.9,1.81051456]
[1741921410792,5.128,1895.6,1894.9,1.81051456]
[1741921410793,3.88844,1895.8,1895.3,3.69327]
[1741921411013,0.196,1896.0,1895.5,3.69292]
[1741921411185,3.6921,1896.0,1895.7,0.7625]
[1741921411391,3.69237,1895.8,1895.5,0.7984]
[1741921412185,3.88827,1895.9,1895.5,0.7984]
[1741921412708,3.88826,1895.9,1895.5,0.7984]
[1741921412873,3.69226,1895.9,1895.5,4.49132]
[1741921413277,3.0,1896.0,1895.6,3.69273]
[1741921413473,6.69204,1896.0,1895.6,4.141843]
[1741921413804,6.69204,1896.0,1895.6,5.22353015]
[1741921414626,6.69204,1896.0,1895.6,8.91620015]
[1741921414794,3.0,1896.0,1895.7,3.69249]
[1741921414995,3.0,1896.0,1895.8,0.7783]
[1741921415518,3.196,1896.2,1895.8,0.7783]
[1741921415721,6.69171,1896.2,1895.8,0.7783]
[1741921415884,6.6916,1896.2,1895.8,4.47054]
[1741921416079,21.14949,1896.3,1895.9,3.69214]
[1741921416400,17.458,1896.3,1895.9,0.05274292]